bitfinex/quotes_BTCUSD_20240817
["timestamp","ask_amount","ask_price","bid_price","bid_amount"]
[1723872775137,0.62711181,59291.0,59290.0,0.0089075]
[1723872779118,0.89696681,59291.0,59290.0,0.0089075]
[1723872780229,0.62711181,59291.0,59290.0,0.0089075]
[1723872780983,0.89696681,59291.0,59290.0,0.0089075]
[1723872782184,0.62711181,59291.0,59290.0,0.0089075]
[1723872782949,0.89696681,59291.0,59290.0,0.0089075]
[1723872787578,0.8969955,59291.0,59290.0,0.0089075]
[1723872788410,1.03526931,59291.0,59290.0,0.0089075]
[1723872789257,0.8969955,59291.0,59290.0,0.0089075]
[1723872795708,1.02300234,59291.0,59290.0,0.0089075]
[1723872795915,0.94800234,59291.0,59290.0,0.0089075]
[1723872796518,0.8219955,59291.0,59290.0,0.0089075]
[1723872800293,1.0918505,59291.0,59290.0,0.0089075]
[1723872805419,1.24304012,59291.0,59290.0,0.0089075]
[1723872805619,0.83021198,59291.0,59290.0,0.0089075]
[1723872805827,1.24453439,59291.0,59290.0,0.0089075]
[1723872806036,1.09316542,59291.0,59290.0,0.0089075]
[1723872806451,1.24453439,59291.0,59290.0,0.0089075]
[1723872806649,0.97467939,59291.0,59290.0,0.0089075]
[1723872807464,0.82331042,59291.0,59290.0,0.0089075]
[1723872808498,0.82351495,59291.0,59290.0,0.0089075]
[1723872810506,0.82363532,59291.0,59290.0,0.0089075]
[1723872812634,1.16533591,59291.0,59290.0,0.0089075]
[1723872812842,0.80108091,59291.0,59290.0,0.0089075]
[1723872813045,0.80108091,59291.0,59290.0,0.1563075]
[1723872813046,0.32445332,59291.0,59290.0,0.1563075]
[1723872813481,0.47608284,59291.0,59290.0,0.1563075]
[1723872815246,0.47608284,59291.0,59290.0,0.2912375]
[1723872815481,0.29445332,59291.0,59290.0,0.2912375]
[1723872815697,0.29445332,59291.0,59290.0,0.8309575]
[1723872816357,0.26427834,59291.0,59290.0,0.8309575]
[1723872816781,0.42077245,59291.0,59290.0,0.8309575]
[1723872817269,0.29442645,59291.0,59290.0,0.8309575]
[1723872817674,0.29342645,59291.0,59290.0,0.8229575]
[1723872817881,0.29442645,59291.0,59290.0,0.8339575]
[1723872818326,0.10691515,59291.0,59290.0,0.8339575]
[1723872819004,0.10791515,59291.0,59290.0,0.8479575]
[1723872819436,0.10791343,59291.0,59290.0,0.8479575]
[1723872820746,0.10791343,59291.0,59290.0,1.01951204]
[1723872821468,0.03214811,59291.0,59290.0,1.01951204]
[1723872822325,0.08263548,59291.0,59290.0,1.01951204]
[1723872826419,0.03214811,59291.0,59290.0,1.01951204]
[1723872826609,0.08263548,59291.0,59290.0,1.01951204]
[1723872826808,0.3995223,59291.0,59290.0,1.01951204]
[1723872827015,0.39942514,59291.0,59290.0,1.01951204]
[1723872829722,0.10783945,59291.0,59290.0,1.01951204]
[1723872830138,0.03214811,59291.0,59290.0,0.5780975]
[1723872830352,0.299082,59291.0,59290.0,0.1608375]
[1723872830553,0.42523796,59291.0,59290.0,0.1608375]
[1723872830978,0.299082,59291.0,59290.0,0.1608375]
[1723872832944,0.03214811,59291.0,59290.0,0.1608375]
[1723872833147,0.2985326,59291.0,59290.0,0.1608375]
[1723872836359,0.42468599,59291.0,59290.0,0.1608375]
[1723872836650,0.59308599,59291.0,59290.0,0.0259075]
[1723872836856,0.59308599,59291.0,59290.0,0.1608375]
[1723872837065,0.4669326,59291.0,59290.0,0.0259075]
[1723872837476,0.4647863,59291.0,59290.0,0.0259075]
[1723872838942,0.8695683,59291.0,59290.0,0.0259075]
[1723872839187,1.13242539,59291.0,59290.0,0.0259075]
[1723872839364,1.32371853,59291.0,59290.0,0.0259075]
[1723872839574,1.40228354,59291.0,59290.0,0.0259075]
[1723872839792,1.25095152,59291.0,59290.0,0.0259075]
[1723872840003,1.64962526,59291.0,59290.0,0.0119075]
[1723872840241,1.47839115,59291.0,59290.0,0.0009075]
[1723872840481,1.47939115,59291.0,59290.0,0.0139075]
[1723872840924,1.47939115,59291.0,59290.0,0.0099075]
[1723872841167,1.47353013,59291.0,59290.0,0.0119075]
[1723872841587,1.47253013,59291.0,59290.0,0.0029075]
[1723872841818,0.65949313,59291.0,59290.0,0.0029075]
[1723872842050,0.47303442,59291.0,59290.0,0.0089075]
[1723872842465,0.32172432,59291.0,59290.0,0.0089075]
[1723872842669,0.47303442,59291.0,59290.0,0.0089075]
[1723872842881,0.70235442,59291.0,59290.0,0.0089075]
[1723872843120,0.55105132,59291.0,59290.0,0.0089075]
[1723872843739,0.70234003,59291.0,59290.0,0.0089075]
[1723872845252,0.70478668,59291.0,59290.0,0.0089075]
[1723872845697,0.70478668,59291.0,59290.0,0.1470075]
[1723872845698,0.32418467,59291.0,59290.0,0.1470075]
[1723872848081,0.41858467,59291.0,59290.0,0.1470075]
[1723872849743,0.41888169,59291.0,59290.0,0.1470075]
[1723872850473,0.57023762,59291.0,59290.0,0.1470075]
[1723872854351,0.57036799,59291.0,59290.0,0.1470075]
[1723872854820,0.15554811,59291.0,59290.0,0.1470075]
[1723872855068,0.30699157,59291.0,59290.0,0.1470075]
[1723872855311,0.57040571,59291.0,59290.0,0.1470075]
[1723872856804,0.70533271,59291.0,59290.0,0.1470075]
[1723872859137,0.54040571,59291.0,59290.0,0.1470075]
[1723872859362,0.38896225,59291.0,59290.0,0.2819375]
[1723872863159,0.38896225,59291.0,59290.0,0.1470075]
[1723872863370,0.38896225,59291.0,59290.0,0.0717075]
[1723872868292,0.54040571,59291.0,59290.0,0.0717075]
[1723872868725,0.54156984,59291.0,59290.0,0.0717075]
[1723872869789,0.54156984,59291.0,59290.0,0.0089075]
[1723872870321,0.38998736,59291.0,59290.0,0.0089075]
[1723872872400,0.12554811,59291.0,59290.0,0.0089075]
[1723872872601,0.38988743,59291.0,59290.0,0.0089075]
[1723872874942,0.52481443,59291.0,59290.0,0.0089075]
[1723872876883,0.38988743,59291.0,59290.0,0.0089075]
[1723872877300,0.38993769,59291.0,59290.0,0.0089075]
[1723872882029,0.29553769,59291.0,59290.0,0.2867375]
[1723872882250,0.29553769,59291.0,59290.0,0.5565975]
[1723872882734,0.26538958,59291.0,59290.0,0.5565975]
[1723872882939,0.29454011,59291.0,59290.0,0.5505975]
[1723872883365,0.29554011,59291.0,59290.0,0.5585975]
[1723872883571,0.29554011,59291.0,59290.0,0.5565975]
[1723872883752,0.29554011,59291.0,59290.0,0.5605975]
[1723872884407,0.29554011,59291.0,59290.0,1.00201204]
[1723872884619,0.29554011,59291.0,59290.0,1.37187204]
[1723872884620,0.39669185,59291.0,59290.0,1.37187204]
[1723872884826,0.07684401,59291.0,59290.0,1.37187204]
[1723872885030,0.03115186,59291.0,59290.0,1.37187204]
[1723872885871,0.03015186,59291.0,59290.0,1.36387204]
[1723872886074,0.03015186,59291.0,59290.0,1.6789023]
[1723872886281,0.05055366,59297.0,59296.0,0.547648]
[1723872886495,0.000825,59298.0,59296.0,0.547648]
[1723872886496,0.000825,59298.0,59296.0,0.68428654]
[1723872886704,0.000825,59298.0,59297.0,0.81919654]
[1723872886909,0.000825,59298.0,59297.0,1.35885254]
[1723872888144,0.000825,59298.0,59297.0,1.37185254]
[1723872889628,0.000825,59298.0,59297.0,1.38585254]
[1723872895318,0.000825,59298.0,59297.0,1.38676004]
[1723872895781,0.03098532,59298.0,59297.0,1.38676004]
[1723872903776,0.03098532,59298.0,59297.0,0.8024775]
[1723872907896,0.03098532,59298.0,59297.0,0.9412775]
[1723872916027,0.03098532,59298.0,59297.0,1.2111055]
[1723872921834,0.03098532,59298.0,59297.0,1.38266004]
[1723872927592,0.08148921,59298.0,59297.0,1.38266004]
[1723872928654,0.10674116,59298.0,59297.0,1.30746004]
[1723872928894,0.10681576,59298.0,59297.0,1.30746004]
[1723872929326,0.03098532,59298.0,59297.0,1.30746004]
[1723872929535,0.10681576,59298.0,59297.0,1.30746004]
[1723872930216,0.10684211,59298.0,59297.0,1.30746004]
[1723872930646,0.1321277,59298.0,59297.0,1.30746004]
[1723872930857,0.39930665,59298.0,59297.0,1.30746004]
[1723872932313,0.42459225,59298.0,59297.0,0.8024775]
[1723872934227,0.42459225,59298.0,59297.0,0.7974775]
[1723872934437,0.29816427,59298.0,59297.0,0.7974775]
[1723872934641,0.15743514,59298.0,59297.0,0.7974775]
[1723872934844,0.42461409,59298.0,59297.0,0.7974775]
[1723872935259,0.29816427,59298.0,59297.0,0.7974775]
[1723872935463,0.15743548,59298.0,59297.0,0.7974775]
[1723872935641,0.42461443,59298.0,59297.0,0.7974775]
[1723872936086,0.29816427,59298.0,59297.0,0.7974775]
[1723872936521,0.15743484,59298.0,59297.0,0.7974775]
[1723872936743,0.42461379,59298.0,59297.0,0.7974775]
[1723872938206,0.42461379,59298.0,59297.0,0.7924775]
[1723872938843,0.29816427,59298.0,59297.0,0.7924775]
[1723872939068,0.15743143,59298.0,59297.0,0.7924775]
[1723872939315,0.42461038,59298.0,59297.0,0.7924775]
[1723872940871,0.42461038,59298.0,59297.0,1.37056004]
[1723872940872,0.39932369,59298.0,59297.0,1.37056004]
[1723872943866,0.39954214,59298.0,59297.0,1.37056004]
[1723872946363,0.03098532,59298.0,59297.0,1.37056004]
[1723872950534,0.29858291,59298.0,59297.0,1.37056004]
[1723872951378,0.39973986,59298.0,59297.0,1.37056004]
[1723872953092,0.39978696,59298.0,59297.0,1.37056004]
[1723872954527,0.10687267,59298.0,59297.0,1.37056004]
[1723872955581,0.03098532,59298.0,59297.0,1.37056004]
[1723872956225,0.10687267,59298.0,59297.0,1.37056004]
[1723872956433,0.03098532,59298.0,59297.0,1.37056004]
[1723872956660,0.10687267,59298.0,59297.0,1.23386004]
[1723872961046,0.10685934,59298.0,59297.0,0.7924775]
[1723872961263,0.53278316,59298.0,59297.0,0.0279075]
[1723872961485,0.6845312,59298.0,59297.0,0.1628215]
[1723872961712,0.43838316,59298.0,59297.0,0.1628215]
[1723872962158,0.43838316,59298.0,59297.0,0.0279075]
[1723872963251,0.56481048,59298.0,59297.0,0.1628215]
[1723872963466,0.56481048,59298.0,59297.0,0.7024775]
[1723872963467,0.40042122,59298.0,59297.0,0.7024775]
[1723872963893,0.03098532,59298.0,59297.0,0.7024775]
[1723872964319,0.15740472,59298.0,59297.0,0.7024775]
[1723872964599,0.42491465,59298.0,59297.0,0.7024775]
[1723872964805,0.29849525,59298.0,59297.0,0.7024775]
[1723872965014,0.10684018,59298.0,59297.0,0.7024775]
[1723872965228,0.10684018,59298.0,59297.0,0.87403204]
[1723872966558,0.10684018,59298.0,59297.0,1.29016004]
[1723872969342,0.03098532,59298.0,59297.0,1.29016004]
[1723872969975,0.10686337,59298.0,59297.0,1.29016004]
[1723872972738,0.08156129,59298.0,59297.0,1.68298804]
[1723872972948,0.03098532,59298.0,59297.0,1.70515723]
[1723872973368,0.03098532,59298.0,59297.0,1.70815723]
[1723872973596,0.03098532,59298.0,59297.0,1.79955723]
[1723872974213,0.03098532,59298.0,59297.0,1.80255723]
[1723872974419,0.03098532,59298.0,59297.0,1.80455723]
[1723872975736,0.03098532,59298.0,59297.0,2.14194623]
[1723872977234,0.03098532,59298.0,59297.0,2.15201694]
[1723872978495,0.03098532,59298.0,59297.0,2.12984775]
[1723872978719,0.03098532,59298.0,59297.0,2.15201367]
[1723872990723,0.03098532,59298.0,59297.0,2.12984775]
[1723872990929,0.03098532,59298.0,59297.0,2.1520137]
[1723872993268,0.03098532,59298.0,59297.0,2.15201328]
[1723872993423,0.03098532,59298.0,59297.0,2.17417881]
[1723872996455,0.03098532,59298.0,59297.0,2.17017881]
[1723872996838,0.03098532,59298.0,59297.0,2.17417881]
[1723872997576,0.03098532,59298.0,59297.0,2.63301794]
[1723872997790,0.000825,59299.0,59298.0,0.139911]
[1723872997973,0.416192,59300.0,59299.0,0.679547]
[1723872998171,0.416192,59300.0,59299.0,1.11566707]
[1723872998377,0.416192,59300.0,59299.0,1.94812407]
[1723872998603,0.416192,59300.0,59299.0,2.19577754]
[1723872998788,0.416192,59300.0,59299.0,2.21793897]
[1723872999329,0.416192,59300.0,59299.0,1.94811997]
[1723873000008,0.416192,59300.0,59299.0,1.96211997]
[1723873000667,0.416192,59300.0,59299.0,2.05651997]
[1723873001473,0.416192,59300.0,59299.0,2.07051997]
[1723873003135,0.416192,59300.0,59299.0,2.04835854]
[1723873003344,0.416192,59300.0,59299.0,2.07052148]
[1723873006440,0.416192,59300.0,59299.0,2.05652148]
[1723873006647,0.416192,59300.0,59299.0,2.07052148]
[1723873006849,0.416192,59300.0,59299.0,2.04835854]
[1723873007058,0.416192,59300.0,59299.0,2.07052152]
[1723873008076,0.416192,59300.0,59299.0,2.17606244]
[1723873011006,0.416192,59300.0,59299.0,2.15389946]
[1723873011214,0.416192,59300.0,59299.0,2.17696992]
[1723873011428,0.417017,59300.0,59299.0,2.17696992]
[1723873011844,0.417017,59300.0,59299.0,2.16296973]
[1723873013766,0.417017,59300.0,59299.0,2.17496973]
[1723873013994,0.417017,59300.0,59299.0,1.95932881]
[1723873014213,0.417017,59300.0,59299.0,2.06772881]
[1723873015107,0.417017,59300.0,59299.0,2.04556604]
[1723873015371,0.417017,59300.0,59299.0,2.06773033]
[1723873015594,0.417017,59300.0,59299.0,2.04556604]
[1723873015797,0.417017,59300.0,59299.0,2.06772993]
[1723873018841,0.417017,59300.0,59299.0,1.92502993]
[1723873019282,0.417017,59300.0,59299.0,1.90286604]
[1723873019485,0.417017,59300.0,59299.0,1.92503047]
[1723873023434,0.417017,59300.0,59299.0,2.00373047]
[1723873023640,0.417017,59300.0,59299.0,2.06823047]
[1723873024523,0.417017,59300.0,59299.0,2.04606604]
[1723873024727,0.417017,59300.0,59299.0,2.06822995]
[1723873026239,0.417017,59300.0,59299.0,2.04606604]
[1723873026655,0.417017,59300.0,59299.0,2.06822995]
[1723873026868,0.417017,59300.0,59299.0,2.10496387]
[1723873027309,0.417017,59300.0,59299.0,2.06822995]
[1723873027513,0.417017,59300.0,59299.0,2.10496387]
[1723873027716,0.417017,59300.0,59299.0,2.06822995]
[1723873027935,0.417017,59300.0,59299.0,2.10496387]
[1723873028212,0.417017,59300.0,59299.0,2.06822995]
[1723873028450,0.417017,59300.0,59299.0,2.10496387]
[1723873028676,0.417017,59300.0,59299.0,2.06822995]
[1723873028895,0.417017,59300.0,59299.0,2.10496387]
[1723873029108,0.417017,59300.0,59299.0,2.04606604]
[1723873029318,0.417017,59300.0,59299.0,2.10496394]
[1723873030542,0.417017,59300.0,59299.0,2.10496387]
[1723873032435,0.417017,59300.0,59299.0,2.21051095]
[1723873035372,0.417017,59300.0,59299.0,2.17377703]
[1723873035589,0.417017,59300.0,59299.0,2.21051095]
[1723873037501,0.417017,59300.0,59299.0,2.26105394]
[1723873039498,0.417017,59300.0,59299.0,2.26305394]
[1723873039893,0.417017,59300.0,59299.0,2.26105394]
[1723873040134,0.417017,59300.0,59299.0,2.26105388]
[1723873040762,0.417017,59300.0,59299.0,2.26105394]
[1723873042888,0.417017,59300.0,59299.0,2.20215611]
[1723873043090,0.417017,59300.0,59299.0,2.26105402]
[1723873045269,0.417017,59300.0,59299.0,2.21051103]
[1723873049441,0.417017,59300.0,59299.0,2.28642876]
[1723873049792,0.417017,59300.0,59299.0,2.21051103]
[1723873049991,0.417017,59300.0,59299.0,2.28643687]
[1723873051099,0.417017,59300.0,59299.0,2.21051103]
[1723873051280,0.417017,59300.0,59299.0,2.21051125]
[1723873051681,0.417017,59300.0,59299.0,2.15161312]
[1723873051899,0.417017,59300.0,59299.0,2.2105113]
[1723873053113,0.417017,59300.0,59299.0,2.2864439]
[1723873053314,0.417017,59300.0,59299.0,2.22754572]
[1723873053522,0.417017,59300.0,59299.0,2.2864439]
[1723873054009,0.417017,59300.0,59299.0,2.2105113]
[1723873054252,0.417017,59300.0,59299.0,2.2864439]
[1723873054960,0.417017,59300.0,59299.0,2.2219439]
[1723873055441,0.417017,59300.0,59299.0,2.16304572]
[1723873055682,0.417017,59300.0,59299.0,2.22194402]
[1723873056221,0.417017,59300.0,59299.0,2.31648998]
[1723873058331,0.417017,59300.0,59299.0,2.24054203]
[1723873059118,0.417017,59300.0,59299.0,2.34180596]
[1723873063442,0.417017,59300.0,59299.0,2.30507174]
[1723873063684,0.417017,59300.0,59299.0,2.34180596]
[1723873065207,0.417017,59300.0,59299.0,2.26310596]
[1723873070448,0.417017,59300.0,59299.0,2.32600596]
[1723873070647,0.417017,59300.0,59299.0,2.40470596]
[1723873071721,0.417017,59300.0,59299.0,2.40470603]
[1723873073614,0.417017,59300.0,59299.0,2.3034421]
[1723873074060,0.417017,59300.0,59299.0,2.40470603]
[1723873074404,0.417017,59300.0,59299.0,2.3034421]
[1723873075078,0.417017,59300.0,59299.0,2.30389179]
[1723873075800,0.417017,59300.0,59299.0,2.24499342]
[1723873075934,0.417017,59300.0,59299.0,2.11644929]
[1723873076134,0.417017,59300.0,59299.0,2.19667647]
[1723873076340,0.417017,59300.0,59299.0,2.01830191]
[1723873076541,0.417017,59300.0,59299.0,2.19667366]
[1723873076752,0.417017,59300.0,59299.0,2.09112129]
[1723873076986,0.417017,59300.0,59299.0,2.19667456]
[1723873077130,0.417017,59300.0,59299.0,2.14602022]
[1723873077772,0.417017,59300.0,59299.0,2.22200482]
[1723873077975,0.417017,59300.0,59299.0,2.14602022]
[1723873078626,0.417017,59300.0,59299.0,2.19667043]
[1723873078827,0.417017,59300.0,59299.0,2.14602022]
[1723873079234,0.417017,59300.0,59299.0,2.09111749]
[1723873079671,0.417017,59300.0,59299.0,2.03221454]
[1723873079876,0.417017,59300.0,59299.0,2.09111504]
[1723873080075,0.417017,59300.0,59299.0,2.14601751]
[1723873080438,0.417017,59300.0,59299.0,2.04046654]
[1723873080682,0.417017,59300.0,59299.0,2.14601765]
[1723873081151,0.417017,59300.0,59299.0,2.2219904]
[1723873081551,0.417017,59300.0,59299.0,2.14601765]
[1723873081772,0.417017,59300.0,59299.0,2.2219904]
[1723873082586,0.417017,59300.0,59299.0,2.14601765]
[1723873083213,0.417017,59300.0,59299.0,2.19666514]
[1723873083415,0.417017,59300.0,59299.0,2.09111403]
[1723873084062,0.417017,59300.0,59299.0,2.19666581]
[1723873084491,0.417017,59300.0,59299.0,2.14601832]
[1723873085836,0.417017,59300.0,59299.0,2.22199107]
[1723873086922,0.417017,59300.0,59299.0,2.16309057]
[1723873087124,0.417017,59300.0,59299.0,2.08711782]
[1723873087327,0.417017,59300.0,59299.0,2.14601718]
[1723873087551,0.417017,59300.0,59299.0,2.22199001]
[1723873087977,0.417017,59300.0,59299.0,2.14601726]
[1723873088252,0.417017,59300.0,59299.0,2.31688444]
[1723873088502,0.417017,59300.0,59299.0,2.22199001]
[1723873088991,0.417017,59300.0,59299.0,2.14601726]
[1723873091253,0.417017,59300.0,59299.0,2.14601741]
[1723873092965,0.417017,59300.0,59299.0,2.22198564]
[1723873099110,0.417017,59300.0,59299.0,2.16308605]
[1723873099311,0.417017,59300.0,59299.0,2.22198539]
[1723873100481,0.417017,59300.0,59299.0,2.2219854]
[1723873101413,0.417017,59300.0,59299.0,2.22198757]
[1723873103323,0.417017,59300.0,59299.0,2.37942154]
[1723873105203,0.417017,59300.0,59299.0,2.30345114]
[1723873105374,0.417017,59300.0,59299.0,2.43006848]
[1723873105980,0.417017,59300.0,59299.0,2.43005348]
[1723873106183,0.417017,59300.0,59299.0,2.30345114]
[1723873106388,0.417017,59300.0,59299.0,2.40473051]
[1723873106597,0.417017,59300.0,59299.0,2.43005348]
[1723873110330,0.417017,59300.0,59299.0,2.30345114]
[1723873111298,0.417017,59300.0,59299.0,2.43004956]
[1723873111617,0.417017,59300.0,59299.0,2.46678187]
[1723873112066,0.417017,59300.0,59299.0,2.43004947]
[1723873113101,0.417017,59300.0,59299.0,2.42757291]
[1723873113229,0.417017,59300.0,59299.0,2.30101774]
[1723873113429,0.417017,59300.0,59299.0,2.30101779]
[1723873115125,0.417017,59300.0,59299.0,2.30100156]
[1723873115533,0.417017,59300.0,59299.0,2.24210617]
[1723873115749,0.417017,59300.0,59299.0,2.30100156]
[1723873118690,0.417017,59300.0,59299.0,2.26426908]
[1723873118964,0.417017,59300.0,59299.0,2.32316418]
[1723873119223,0.417017,59300.0,59299.0,2.44970884]
[1723873119975,0.417017,59300.0,59299.0,2.41297649]
[1723873120197,0.417017,59300.0,59299.0,2.32316374]
[1723873121737,0.417017,59300.0,59299.0,2.4497084]
[1723873122181,0.417017,59300.0,59299.0,2.42754549]
[1723873122834,0.417017,59300.0,59299.0,2.41354549]
[1723873123541,0.417017,59300.0,59299.0,2.42754549]
[1723873123778,0.417017,59300.0,59299.0,2.41354549]
[1723873124224,0.417017,59300.0,59299.0,2.42754549]
[1723873124432,0.417017,59300.0,59299.0,2.24210617]
[1723873124641,0.417017,59300.0,59299.0,2.30100064]
[1723873125477,0.417017,59300.0,59299.0,2.4275453]
[1723873126030,0.417017,59300.0,59299.0,2.4295453]
[1723873126233,0.417017,59300.0,59299.0,2.30300064]
[1723873126470,0.417017,59300.0,59299.0,2.30100064]
[1723873128007,0.417017,59300.0,59299.0,2.26426885]
[1723873128239,0.417017,59300.0,59299.0,2.30300064]
[1723873128920,0.417017,59300.0,59299.0,2.30217574]
[1723873129135,0.417017,59300.0,59299.0,2.20777574]
[1723873129348,0.417017,59300.0,59299.0,2.42867998]
[1723873129809,0.417017,59300.0,59299.0,2.40337893]
[1723873130463,0.417017,59300.0,59299.0,2.40537893]
[1723873130933,0.417017,59300.0,59299.0,2.68649898]
[1723873131607,0.417017,59300.0,59299.0,2.54599474]
[1723873131823,0.417017,59300.0,59299.0,2.55999474]
[1723873132335,0.417017,59300.0,59299.0,2.57399359]
[1723873132543,0.417017,59300.0,59299.0,2.30417459]
[1723873132755,0.417017,59300.0,59299.0,2.27617459]
[1723873133195,0.417017,59300.0,59299.0,2.55999359]
[1723873133392,0.417017,59300.0,59299.0,2.28906608]
[1723873134146,0.417017,59300.0,59299.0,2.30306608]
[1723873135687,0.417017,59300.0,59299.0,2.57288508]
[1723873135946,0.417017,59300.0,59299.0,2.30306608]
[1723873136150,0.214655,59300.0,59299.0,2.1975143]
[1723873136368,0.214655,59300.0,59299.0,2.4673333]
[1723873136592,0.214655,59300.0,59299.0,2.46733295]
[1723873137101,0.214655,59300.0,59299.0,2.43060211]
[1723873137350,0.214655,59300.0,59299.0,2.46733295]
[1723873137809,0.214655,59300.0,59299.0,2.67406454]
[1723873138037,0.214655,59300.0,59299.0,2.6734772]
[1723873141400,0.214655,59300.0,59299.0,2.67303545]
[1723873142076,0.214655,59300.0,59299.0,2.40321645]
[1723873143738,0.214655,59300.0,59299.0,2.67303545]
[1723873143956,0.214655,59300.0,59299.0,2.40321645]
[1723873144474,0.214655,59300.0,59299.0,2.67303545]
[1723873144697,0.214655,59300.0,59299.0,2.39921645]
[1723873145915,0.214655,59300.0,59299.0,2.19275238]
[1723873146156,0.214655,59300.0,59299.0,2.28389036]
[1723873147103,0.214655,59300.0,59299.0,2.28389156]
[1723873147330,0.214655,59300.0,59299.0,2.15739295]
[1723873147861,0.214655,59300.0,59299.0,2.22389295]
[1723873148084,0.214655,59300.0,59299.0,2.30779295]
[1723873148856,0.214655,59300.0,59299.0,2.30779047]
[1723873150016,0.214655,59300.0,59299.0,2.35652366]
[1723873150241,0.214655,59300.0,59299.0,2.35615428]
[1723873150468,0.214655,59300.0,59299.0,2.62597328]
[1723873153126,0.214655,59300.0,59299.0,2.56708159]
[1723873153348,0.046022,59300.0,59299.0,2.62597312]
[1723873154325,0.012295,59300.0,59299.0,2.62597312]
[1723873154574,0.000825,59303.0,59302.0,1.634327]
[1723873154820,0.000825,59303.0,59302.0,2.30593306]
[1723873155284,0.000825,59303.0,59302.0,2.57573806]
[1723873155990,0.000825,59303.0,59302.0,2.68413806]
[1723873156202,0.000825,59303.0,59302.0,2.57166156]
[1723873157012,0.000825,59303.0,59302.0,2.56966156]
[1723873157428,0.000825,59303.0,59302.0,2.56965181]
[1723873157628,0.000825,59303.0,59302.0,2.52299417]
[1723873157866,0.000825,59303.0,59302.0,2.62614424]
[1723873158067,0.000825,59303.0,59302.0,2.59379756]
[1723873158272,0.000825,59303.0,59302.0,2.5894213]
[1723873158474,0.000825,59303.0,59302.0,2.62614508]
[1723873158680,0.000825,59303.0,59302.0,2.52499417]
[1723873158880,0.000825,59303.0,59302.0,2.63052006]
[1723873159925,0.000825,59303.0,59302.0,2.63052082]
[1723873161565,0.000825,59303.0,59302.0,2.63052247]
[1723873162180,0.066225,59311.0,59310.0,1.484729]
[1723873162400,0.066225,59311.0,59310.0,1.89584182]
[1723873163032,0.066225,59311.0,59310.0,1.96338482]
[1723873163642,0.000825,59311.0,59310.0,1.96538482]
[1723873164477,0.000825,59311.0,59310.0,1.97938482]
[1723873164682,0.000825,59311.0,59310.0,1.99338482]
[1723873165322,0.000825,59311.0,59310.0,1.99538482]
[1723873165732,0.000825,59311.0,59310.0,2.07488477]
[1723873166353,0.000825,59311.0,59310.0,2.07088477]
[1723873166559,0.000825,59311.0,59310.0,1.99138477]
[1723873167589,0.000825,59311.0,59310.0,2.00168342]
[1723873167813,0.000825,59311.0,59310.0,2.05224618]
[1723873168426,0.000825,59311.0,59310.0,2.0522388]
[1723873168637,0.000825,59311.0,59310.0,2.10720458]
[1723873169903,0.000825,59311.0,59310.0,2.1355997]
[1723873170109,0.000825,59311.0,59310.0,2.15775644]
[1723873170313,0.000825,59311.0,59310.0,2.10720309]
[1723873170519,0.000825,59311.0,59310.0,2.00168193]
[1723873170725,0.000825,59311.0,59310.0,2.05223368]
[1723873171126,0.000825,59311.0,59310.0,2.05223541]
[1723873171761,0.000825,59311.0,59310.0,2.19070311]
[1723873172178,0.000825,59311.0,59310.0,2.22542483]
[1723873172628,0.000825,59311.0,59310.0,2.23925433]
[1723873173261,0.000825,59311.0,59310.0,2.23925403]
[1723873173695,0.000825,59311.0,59310.0,2.22542483]
[1723873174127,0.000825,59311.0,59310.0,2.26213818]
[1723873174344,0.000825,59311.0,59310.0,2.28429299]
[1723873174979,0.000825,59311.0,59310.0,2.34689299]
[1723873175828,0.000825,59311.0,59310.0,2.28801967]
[1723873176018,0.000825,59311.0,59310.0,2.34889268]
[1723873176238,0.000825,59311.0,59310.0,2.42471906]
[1723873176461,0.000825,59311.0,59310.0,2.51169299]
[1723873177264,0.000825,59311.0,59310.0,2.78146199]
[1723873177469,0.000825,59311.0,59310.0,2.77746199]
[1723873178336,0.000825,59311.0,59310.0,2.71858898]
[1723873178539,0.000825,59311.0,59310.0,2.77745462]
[1723873179391,0.000825,59311.0,59310.0,2.77745553]
[1723873179609,0.000825,59311.0,59310.0,2.63335553]
[1723873181111,0.000825,59311.0,59310.0,2.77905553]
[1723873182146,0.000825,59311.0,59310.0,2.78105553]
[1723873182338,0.000825,59311.0,59310.0,2.71818223]
[1723873183683,0.000825,59311.0,59310.0,2.72018223]
[1723873183933,0.000825,59311.0,59310.0,2.71818223]
[1723873184110,0.000825,59311.0,59310.0,2.72018223]
[1723873184418,0.000825,59311.0,59310.0,2.72218223]
[1723873184593,0.000825,59311.0,59310.0,2.71818223]
[1723873185208,0.000825,59311.0,59310.0,2.71817871]
[1723873185912,0.000825,59311.0,59310.0,2.72017871]
[1723873186661,0.000825,59312.0,59310.0,2.72017871]
[1723873186662,1e-06,59312.0,59311.0,1.902166]
[1723873186862,0.00041899,59317.0,59316.0,0.675352]
[1723873187065,0.00041899,59317.0,59316.0,1.72137778]
[1723873187490,0.00041899,59317.0,59316.0,2.26085978]
[1723873187693,0.00041899,59317.0,59316.0,2.26285978]
[1723873188341,0.00041899,59317.0,59316.0,2.26485978]
[1723873188763,0.00041899,59317.0,59316.0,2.27885978]
[1723873189378,0.00041899,59317.0,59316.0,2.29285978]
[1723873189787,0.00041899,59317.0,59316.0,2.28885978]
[1723873190417,0.00041899,59317.0,59316.0,2.41503615]
[1723873190838,0.00041899,59317.0,59316.0,2.48256681]
[1723873191065,0.00041899,59317.0,59316.0,2.42372739]
[1723873191288,0.00041899,59317.0,59316.0,2.35318909]
[1723873191494,0.00041899,59317.0,59316.0,2.47934926]
[1723873191919,0.00041899,59317.0,59316.0,2.48134926]
[1723873192751,0.00041899,59317.0,59316.0,2.47934926]
[1723873193430,0.00041899,59317.0,59316.0,2.35318909]
[1723873194040,0.00041899,59317.0,59316.0,2.36356533]
[1723873195089,0.00041899,59317.0,59316.0,2.46448088]
[1723873195294,0.00041899,59317.0,59316.0,2.3635698]
[1723873195519,0.00041899,59317.0,59316.0,2.46448535]
[1723873196841,0.00041899,59317.0,59316.0,2.3635698]
[1723873197045,0.00041899,59317.0,59316.0,2.3675698]
[1723873197250,0.00041899,59317.0,59316.0,2.46848535]
[1723873199236,0.00041899,59317.0,59316.0,2.3675698]
[1723873199485,0.00041899,59317.0,59316.0,2.46848535]
[1723873199696,0.00041899,59317.0,59316.0,2.46848536]
[1723873199917,0.00041899,59317.0,59316.0,2.40965093]
[1723873200129,0.00041899,59317.0,59316.0,2.36756975]
[1723873202042,0.00041899,59317.0,59316.0,2.44325559]
[1723873202252,0.00041899,59317.0,59316.0,2.38442026]
[1723873202456,0.00041899,59317.0,59316.0,2.71299735]
[1723873202664,0.00041899,59317.0,59316.0,2.70899735]